fUST/lending_fUST_20250713
["ID","MTS","AMOUNT","RATE_DAILY","PERIOD"]
[371562482,1752354653679,-151.0,0.00020544,2]
[371562483,1752354653688,-362.886254,0.00020545,2]
[371562484,1752354653698,-362.886256,0.00020545,2]
[371562485,1752354653707,-209.073815,0.00020545,2]
[371562486,1752354653716,-209.07381,0.00020545,2]
[371562487,1752354653726,-151.0,0.00020559,2]
[371562488,1752354653735,-151.0,0.00020559,2]
[371562489,1752354653744,-667.199736,0.00020559,2]
[371562490,1752354653755,-667.199736,0.00020559,2]
[371562491,1752354653765,-151.0,0.00020577,2]
[371562492,1752354653776,-208.720933,0.00020577,2]
[371562493,1752354653785,-208.720933,0.00020577,2]
[371562494,1752354653795,-151.0,0.00020624,2]
[371562495,1752354653804,-1380.20571853,0.00020624,3]
[371562496,1752354653814,-638.34,0.00020647,2]
[371562497,1752354653824,-696.29,0.00020648,2]
[371562498,1752354653833,-1243.22,0.00020648,2]
[371562499,1752354653843,-492.44,0.00020648,2]
[371562500,1752354653852,-902.12,0.00020648,2]
[371562501,1752354653862,-506.19,0.00020648,2]
[371562502,1752354653871,-151.0,0.00020649,2]
[371562503,1752354653881,-392.10546,0.00020649,2]
[371562504,1752354653890,-392.10546,0.00020649,2]
[371562505,1752354653900,-151.0,0.00020649,2]
[371562506,1752354653909,-2192.74,0.00020649,2]
[371562507,1752354653918,-1283.73,0.00020649,2]
[371562508,1752354653928,-612.42,0.00020649,2]
[371562509,1752354653938,-703.79,0.00020649,2]
[371562510,1752354653947,-496.58,0.00020649,2]
[371562511,1752354653957,-151.0,0.0002066,2]
[371562512,1752354653966,-151.0,0.0002066,2]
[371562513,1752354653975,-151.0,0.000207,4]
[371562514,1752354653985,-160.0,0.000207,3]
[371562515,1752354653994,-679.9689388,0.00020715,2]
[371562516,1752354654005,-154.12425,0.00020739,2]
[371562517,1752354654014,-151.0,0.00020739,2]
[371562518,1752354654024,-151.0,0.00020739,2]
[371562519,1752354654034,-151.0,0.00020739,2]
[371562520,1752354654043,-151.0,0.00020739,2]
[371562521,1752354654053,-151.0,0.00020739,2]
[371562522,1752354654062,-151.0,0.00020739,2]
[371562523,1752354654072,-151.0,0.00020739,2]
[371562524,1752354654082,-263.585055,0.00020739,2]
[371562525,1752354654094,-263.585055,0.00020739,2]
[371562526,1752354654103,-333.984786,0.00020739,2]
[371562527,1752354654113,-333.984786,0.00020739,2]
[371562528,1752354654122,-747.876443,0.00020739,2]
[371562529,1752354654131,-747.876443,0.00020739,2]
[371562530,1752354654141,-381.021425,0.00020739,2]
[371562531,1752354654150,-381.021425,0.00020739,2]
[371562532,1752354654159,-153.848613,0.00020739,2]
[371562533,1752354654170,-24255.35,0.000208,2]
[371562534,1752354654180,-385.142152,0.00020801,2]
[371562535,1752354654189,-177.0,0.00020803,2]
[371562536,1752354654200,-177.0,0.00020805,2]
[371562537,1752354654209,-1910.75,0.00020818,2]
[371562538,1752354654218,-460.0,0.00020818,2]
[371562539,1752354654231,-151.0,0.00020819,2]
[371562540,1752354654241,-151.0,0.00020819,2]
[371562541,1752354654251,-667.199736,0.00020819,2]
[371562542,1752354654261,-667.199746,0.00020819,2]
[371562543,1752354654271,-151.0,0.00020819,2]
[371562544,1752354654283,-208.720933,0.00020819,2]
[371562545,1752354654292,-208.720938,0.00020819,2]
[371562546,1752354654301,-177.0,0.00020887,2]
[371562547,1752354654311,-392.10546,0.00020887,2]
[371562548,1752354654321,-392.10546,0.00020887,2]
[371562549,1752354654330,-151.0,0.00020887,2]
[371562550,1752354654339,-2730.8,0.000209,2]
[371562551,1752354654349,-151.0,0.000209,2]
[371562552,1752354654358,-638.34,0.00020921,2]
[371562553,1752354654368,-696.29,0.00020922,2]
[371562554,1752354654377,-1243.22,0.00020922,2]
[371562555,1752354654386,-902.12,0.00020922,2]
[371562556,1752354654400,-506.19,0.00020922,2]
[371562557,1752354654409,-2192.74,0.00020923,2]
[371562558,1752354654418,-1283.73,0.00020923,2]
[371562559,1752354654428,-612.42,0.00020923,2]
[371562560,1752354654438,-703.79,0.00020923,2]
[371562561,1752354654447,-496.58,0.00020923,2]
[371562562,1752354654457,-1380.20571853,0.00020934,4]
[371562563,1752354654467,-177.0,0.00020941,2]
[371562564,1752354654476,-529.04771109,0.00020994,2]
[371562565,1752354654485,-647.0,0.00021009,2]
[371562566,1752354654495,-429.25307448,0.00021009,2]
[371562567,1752354654585,-515.95806706,0.00021009,2]
[371562568,1752354654600,-1208.78885846,0.00021009,2]
[371562569,1752354654609,-177.0,0.00021063,2]
[371562570,1752354654619,-151.0,0.00021068,2]
[371562571,1752354654628,-151.0,0.00021068,2]
[371562572,1752354654637,-1910.75,0.00021092,2]
[371562573,1752354654646,-54.43930986,0.00021092,2]
[371562574,1752354654728,-460.0,0.00016708,2]
[371562575,1752354654737,-460.0,0.00016982,2]
[371562576,1752354654747,-426.06754836,0.00017256,2]
[371562577,1752354654800,-33.93245164,0.00017256,2]
[371562578,1752354654809,-460.0,0.0001736,2]
[371562579,1752354654819,-460.0,0.0001753,2]
[371562580,1752354654829,-460.0,0.00017634,2]
[371562581,1752354654838,-460.0,0.00017804,2]
[371562582,1752354654848,-460.0,0.00017908,2]
[371562583,1752354654857,-460.0,0.00018078,2]
[371562584,1752354654866,-460.0,0.00018182,2]
[371562585,1752354654876,-460.0,0.00018352,2]
[371562586,1752354654885,-432.4,0.00018626,2]
[371562587,1752354654895,-405.56069014,0.00021092,2]
[371562588,1752354654904,-151.0,0.00021093,2]
[371562589,1752354654913,-151.0,0.00021093,2]
[371562590,1752354654923,-263.585055,0.00021093,2]
[371562591,1752354654932,-263.585055,0.00021093,2]
[371562592,1752354654942,-333.984786,0.00021093,2]
[371562593,1752354654951,-333.984786,0.00021093,2]
[371562594,1752354654960,-747.876443,0.00021093,2]
[371562595,1752354654969,-747.876443,0.00021093,2]
[371562596,1752354654979,-381.021425,0.00021093,2]
[371562597,1752354654988,-381.021425,0.00021093,2]
[371562598,1752354654997,-1224.49118671,0.00021165,2]
[371562599,1752354655008,-857.4953208,0.00021178,2]
[371562600,1752354655018,-638.34,0.00021195,2]
[371562601,1752354655027,-696.29,0.00021196,2]
[371562602,1752354655037,-1243.22,0.00021196,2]
[371562603,1752354655046,-902.12,0.00021196,2]
[371562604,1752354655055,-506.19,0.00021196,2]
[371562605,1752354655064,-2192.74,0.00021197,2]
[371562606,1752354655074,-1283.73,0.00021197,2]
[371562607,1752354655083,-612.42,0.00021197,2]
[371562608,1752354655094,-703.79,0.00021197,2]
[371562609,1752354655103,-496.58,0.00021197,2]
[371562610,1752354655113,-151.0,0.00021223,4]
[371562611,1752354655123,-1380.20571853,0.00021245,4]
[371562612,1752354655132,-247.0,0.00021299,2]
[371562613,1752354655142,-536.15469128,0.00021338,2]
[371562614,1752354655152,-1910.75,0.00021366,2]
[371562615,1752354655161,-460.0,0.00021366,2]
[371562616,1752354655171,-177.0,0.00021412,2]
[371562617,1752354655181,-177.0,0.00021428,2]
[371562618,1752354655190,-396.441888,0.00021461,4]
[371562619,1752354655200,-638.34,0.00021469,2]
[371562620,1752354655209,-696.29,0.0002147,2]
[371562621,1752354655218,-1243.22,0.0002147,2]
[371562622,1752354655227,-902.12,0.0002147,2]
[371562623,1752354655238,-506.19,0.0002147,2]
[371562624,1752354655248,-2192.74,0.00021471,2]
[371562625,1752354655259,-1283.73,0.00021471,2]
[371562626,1752354655269,-612.42,0.00021471,2]
[371562627,1752354655279,-703.79,0.00021471,2]
[371562628,1752354655289,-496.58,0.00021471,2]
[371562629,1752354655298,-177.0,0.00021491,2]
[371562630,1752354655307,-409.54,0.000215,2]
[371562631,1752354655317,-1380.20571853,0.00021555,5]
[371562632,1752354655327,-385.142152,0.00021568,3]
[371562633,1752354655337,-151.0,0.000216,3]
[371562634,1752354655347,-392.10546,0.00021619,2]
[371562635,1752354655356,-392.105466,0.00021619,2]
[371562636,1752354655366,-153.937576,0.00021619,2]
[371562637,1752354655375,-1910.75,0.0002164,2]
[371562638,1752354655385,-460.0,0.0002164,2]
[371562639,1752354655394,-223.0315306,0.00021696,2]
[371562640,1752354655404,-151.0,0.00021712,5]
[371562641,1752354655414,-247.0,0.00021729,2]
[371562642,1752354655424,-638.34,0.00021743,2]
[371562643,1752354655433,-696.29,0.00021744,2]
[371562644,1752354655443,-1243.22,0.00021744,2]
[371562645,1752354655453,-902.12,0.00021744,2]
[371562646,1752354655462,-506.19,0.00021744,2]
[371562647,1752354655472,-151.0,0.00021745,2]
[371562648,1752354655483,-2192.74,0.00021745,2]
[371562649,1752354655492,-1283.73,0.00021745,2]
[371562650,1752354655502,-612.42,0.00021745,2]
[371562651,1752354655512,-703.79,0.00021745,2]
[371562652,1752354655521,-496.58,0.00021745,2]
[371562653,1752354655530,-177.0,0.00021777,2]
[371562654,1752354655542,-177.0,0.00021815,2]
[371562655,1752354655552,-177.0,0.00021823,2]
[371562656,1752354655562,-600.0,0.00021846,2]
[371562657,1752354655572,-600.0,0.00021846,2]
[371562658,1752354655581,-228.34512735,0.00021846,2]
[371562659,1752354655591,-1380.20571853,0.00021866,6]
[371562660,1752354655601,-277923.82251512,0.00021899,2]
[371562661,1752354655613,-952.34218921,0.00021899,2]
[371562662,1752354655625,-12355.83980239,0.00021899,2]
[371562663,1752354655673,-460.0,0.00016537,2]
[371562664,1752354655685,-214.25614385,0.000207,3]
[371562665,1752354655703,-17929.45942432,0.00021899,2]
[371562666,1752354655715,-3400.45751808,0.00021899,2]
[371562667,1752354655727,-38341.18367951,0.00021899,2]
[371562670,1752354714968,24900.0,0.00016033,2]
[371562677,1752355196030,2000.0,0.00015439,2]
[371562678,1752355217365,628.69331054,0.00027397,120]
[371562680,1752355390706,3859.4214973,0.00015439,2]
[371562682,1752355484703,169.914736,0.00013699,2]
[371562686,1752355599925,188.37666795,0.00015903,2]
[371562687,1752355602196,216.31382018,0.00015903,2]
[371562844,1752355720081,150.99999942,0.0002,120]
[371562847,1752355740829,16797.7619271,0.00015464,2]
[371563038,1752355838194,-215.55139905,0.00016329,2]
[371563039,1752355838204,-574.79369467,0.00016339,2]
[371563040,1752355838214,-300.0,0.00016429,2]
[371563041,1752355838223,-300.0,0.00016429,2]
[371563042,1752355838233,-1200.0,0.00016429,2]
[371563043,1752355838243,-853.19,0.0001643,3]
[371563044,1752355838253,-426.59,0.0001643,3]
[371563045,1752355838262,-213.3,0.0001643,3]
[371563046,1752355838272,-639.92,0.0001643,3]
[371563047,1752355838281,-1061.66148721,0.00016437,2]
[371563048,1752355838291,-460.0,0.00016438,2]
[371563049,1752355838300,-460.0,0.00016438,2]
[371563050,1752355838309,-460.0,0.00016438,2]
[371563051,1752355838319,-460.0,0.00016438,2]
[371563052,1752355838328,-460.0,0.00016438,2]
[371563053,1752355838337,-460.0,0.00016438,2]
[371563054,1752355838348,-535.94,0.00016438,2]
[371563055,1752355838357,-460.0,0.00016438,2]
[371563056,1752355838367,-460.0,0.00016438,2]
[371563057,1752355838378,-460.0,0.00016438,2]
[371563058,1752355838388,-165.11,0.00016438,2]
[371563059,1752355838399,-460.0,0.00016438,2]
[371563060,1752355838409,-522.22,0.00016438,2]
[371563061,1752355838418,-932.41,0.00016438,2]
[371563062,1752355838428,-460.0,0.00016438,2]
[371563063,1752355838437,-460.0,0.00016438,2]
[371563064,1752355838447,-460.0,0.00016438,2]
[371563065,1752355838456,-460.0,0.00016438,2]
[371563066,1752355838466,-414.31,0.00016438,2]
[371563067,1752355838476,-676.59,0.00016438,2]
[371563068,1752355838485,-596.26,0.00016438,2]
[371563069,1752355838495,-468.73,0.00016438,2]
[371563070,1752355838505,-362.95,0.00016438,2]
[371563071,1752355838517,-460.0,0.00016438,2]
[371563072,1752355838526,-460.0,0.00016438,2]
[371563073,1752355838535,-460.0,0.00016438,2]
[371563074,1752355838545,-460.0,0.00016438,2]
[371563075,1752355838554,-460.0,0.00016438,2]
[371563076,1752355838564,-460.0,0.00016438,2]
[371563077,1752355838574,-460.0,0.00016438,2]
[371563078,1752355838584,-460.0,0.00016438,2]
[371563079,1752355838598,-460.0,0.00016438,2]
[371563080,1752355838608,-460.0,0.00016438,2]
[371563081,1752355838618,-517.96,0.00016438,2]
[371563082,1752355838627,-460.0,0.00016438,2]
[371563083,1752355838637,-460.0,0.00016438,2]
[371563084,1752355838648,-460.0,0.00016438,2]
[371563085,1752355838657,-460.0,0.00016438,2]
[371563086,1752355838667,-460.0,0.00016438,2]
[371563087,1752355838679,-460.0,0.00016438,2]
[371563088,1752355838689,-460.0,0.00016438,2]
[371563089,1752355838698,-460.0,0.00016438,2]
[371563090,1752355838708,-259.22,0.00016438,2]
[371563091,1752355838717,-460.0,0.00016438,2]
[371563092,1752355838726,-460.0,0.00016438,2]
[371563093,1752355838736,-460.0,0.00016438,2]
[371563094,1752355838746,-460.0,0.00016438,2]
[371563095,1752355838756,-460.0,0.00016438,2]
[371563096,1752355838766,-460.0,0.00016438,2]
[371563097,1752355838775,-460.0,0.00016438,2]
[371563098,1752355838785,-460.0,0.00016439,2]
[371563099,1752355838794,-460.0,0.00016439,2]
[371563100,1752355838804,-375.48260199,0.00016439,2]
[371563101,1752355838814,-460.0,0.00016439,2]
[371563102,1752355838823,-460.0,0.00016439,2]
[371563103,1752355838833,-460.0,0.00016439,2]
[371563104,1752355838844,-460.0,0.00016439,2]
[371563105,1752355838854,-460.0,0.00016439,2]
[371563106,1752355838863,-460.0,0.00016439,2]
[371563107,1752355838873,-460.0,0.00016439,2]
[371563108,1752355838882,-460.0,0.00016439,2]
[371563109,1752355838892,-460.0,0.00016439,2]
[371563110,1752355838902,-460.0,0.00016439,2]
[371563111,1752355838911,-460.0,0.00016439,2]
[371563112,1752355838921,-460.0,0.00016439,2]
[371563113,1752355838931,-264.82,0.00016439,2]
[371563114,1752355838942,-492.43919267,0.00016439,2]
[371563115,1752355838952,-460.0,0.00016439,2]
[371563116,1752355838961,-460.0,0.00016439,2]
[371563117,1752355838971,-1661.57,0.00016439,2]
[371563118,1752355838980,-460.0,0.00016439,2]
[371563119,1752355838990,-460.0,0.00016439,2]
[371563120,1752355838999,-460.0,0.00016439,2]
[371563121,1752355839009,-500.0,0.00016439,2]
[371563122,1752355839019,-500.0,0.00016439,2]
[371563123,1752355839030,-650.55620881,0.00016439,2]
[371563124,1752355839040,-213.05556919,0.00016439,2]
[371563125,1752355839049,-500.0,0.00016439,2]
[371563126,1752355839059,-500.0,0.00016439,2]
[371563127,1752355839068,-500.0,0.00016439,2]
[371563128,1752355839078,-500.0,0.00016439,2]
[371563129,1752355839087,-500.0,0.00016439,2]
[371563130,1752355839098,-500.0,0.00016439,2]
[371563131,1752355839108,-500.0,0.00016439,2]
[371563132,1752355839119,-500.0,0.00016439,2]
[371563133,1752355839129,-500.0,0.00016439,2]
[371563134,1752355839140,-289.23695873,0.00016439,2]
[371563135,1752355839149,-500.0,0.00016439,2]
[371563136,1752355839159,-240.82759745,0.00016439,2]
[371563137,1752355839168,-429.79450631,0.00016439,2]
[371563138,1752355839178,-500.0,0.00016439,2]
[371563139,1752355839187,-385.56101444,0.00016439,2]
[371563140,1752355839196,-575.77650737,0.00016439,2]
[371563141,1752355839206,-500.0,0.00016439,2]
[371563142,1752355839216,-500.0,0.00016439,2]
[371563143,1752355839226,-500.0,0.00016439,2]
[371563144,1752355839236,-500.0,0.00016439,2]
[371563145,1752355839246,-500.0,0.00016439,2]
[371563146,1752355839256,-500.0,0.00016439,2]
[371563147,1752355839267,-500.0,0.00016439,2]
[371563148,1752355839277,-500.0,0.00016439,2]
[371563149,1752355839288,-500.0,0.00016439,2]
[371563150,1752355839300,-500.0,0.00016439,2]
[371563151,1752355839309,-227.45477657,0.00016439,2]
[371563152,1752355839320,-500.0,0.00016439,2]
[371563153,1752355839331,-229803.35597312,0.0001644,2]
[371563154,1752355839340,-175.27308478,0.00016537,2]
[371563155,1752355839351,-460.0,0.00016537,2]
[371563156,1752355839361,-240.56768757,0.00016537,2]
[371563157,1752355839370,-460.0,0.00016537,2]
[371563158,1752355839380,-460.0,0.00016537,2]
[371563159,1752355839390,-460.0,0.00016537,2]
[371563160,1752355839399,-460.0,0.00016537,2]
[371563161,1752355839409,-460.0,0.00016537,2]
[371563162,1752355839419,-460.0,0.00016537,2]
[371563163,1752355839439,-435.72,0.00016537,2]
[371563164,1752355839449,-229.26,0.00016537,2]
[371563165,1752355839459,-354.75,0.00016537,2]
[371563166,1752355839468,-460.0,0.00016537,2]
[371563167,1752355839479,-460.0,0.00016537,2]
[371563168,1752355839490,-460.0,0.00016537,2]
[371563169,1752355839500,-460.0,0.00016537,2]
[371563170,1752355839510,-460.0,0.00016537,2]
[371563171,1752355839520,-962.79,0.00016537,2]
[371563172,1752355839530,-460.0,0.00016537,2]
[371563173,1752355839540,-460.0,0.00016537,2]
[371563174,1752355839551,-460.0,0.00016537,2]
[371563175,1752355839561,-460.0,0.00016537,2]
[371563176,1752355839571,-527.84,0.00016537,2]
[371563177,1752355839580,-1690.37,0.00016537,2]
[371563178,1752355839590,-460.0,0.00016537,2]
[371563179,1752355839604,-460.0,0.00016538,2]
[371563180,1752355839614,-460.0,0.00016538,2]
[371563181,1752355839624,-290.11764247,0.00016538,2]
[371563182,1752355839634,-465.46483809,0.00016538,2]
[371563183,1752355839646,-365.67973378,0.00016538,2]
[371563184,1752355839658,-560.80331752,0.00016538,2]
[371563185,1752355839678,-460.0,0.00016538,2]
[371563186,1752355839688,-460.0,0.00016538,2]
[371563187,1752355839706,-460.0,0.00016539,2]
[371563188,1752355839716,-460.0,0.00016539,2]
[371563189,1752355839727,-460.0,0.00016539,2]
[371563190,1752355839737,-502.61726036,0.00016539,2]
[371563192,1752355839747,-460.0,0.00016539,2]
[371563193,1752355839757,-462.91,0.00016539,2]
[371563194,1752355839767,-460.0,0.00016708,2]
[371563195,1752355839777,-460.0,0.00016709,2]
[371563196,1752355839787,-460.0,0.00016709,2]
[371563197,1752355839797,-460.0,0.00016709,2]
[371563198,1752355839806,-460.0,0.00016712,2]
[371563199,1752355839816,-428.89,0.00016712,2]
[371563200,1752355839825,-460.0,0.00016712,2]
[371563201,1752355839836,-522.22,0.00016712,2]
[371563202,1752355839846,-932.41,0.00016712,2]
[371563203,1752355839856,-460.0,0.00016712,2]
[371563204,1752355839865,-460.0,0.00016712,2]
[371563205,1752355839875,-460.0,0.00016712,2]
[371563206,1752355839885,-460.0,0.00016712,2]
[371563207,1752355839895,-676.59,0.00016712,2]
[371563208,1752355839906,-468.73,0.00016712,2]
[371563210,1752355839916,-460.0,0.00016712,2]
[371563212,1752355839926,-460.0,0.00016712,2]
[371563214,1752355839936,-460.0,0.00016712,2]
[371563216,1752355839946,-591.97,0.00016712,2]
[371563217,1752355839956,-460.0,0.00016712,2]
[371563218,1752355839965,-517.96,0.00016712,2]
[371563219,1752355839975,-460.0,0.00016712,2]
[371563220,1752355839984,-309.59,0.00016712,2]
[371563221,1752355839994,-460.0,0.00016712,2]
[371563222,1752355840004,-460.0,0.00016712,2]
[371563223,1752355840013,-460.0,0.00016712,2]
[371563224,1752355840023,-460.0,0.00016712,2]
[371563225,1752355840032,-460.0,0.00016712,2]
[371563226,1752355840042,-263.95,0.00016712,2]
[371563227,1752355840052,-460.0,0.00016712,2]
[371563228,1752355840062,-460.0,0.00016712,2]
[371563229,1752355840072,-460.0,0.00016713,2]
[371563230,1752355840082,-460.0,0.00016713,2]
[371563231,1752355840091,-460.0,0.00016713,2]
[371563232,1752355840103,-460.0,0.00016713,2]
[371563233,1752355840113,-460.0,0.00016713,2]
[371563234,1752355840122,-460.0,0.00016713,2]
[371563235,1752355840132,-460.0,0.00016713,2]
[371563236,1752355840142,-460.0,0.00016713,2]
[371563237,1752355840152,-460.0,0.00016713,2]
[371563238,1752355840162,-1661.57,0.00016713,2]
[371563239,1752355840171,-460.0,0.00016713,2]
[371563240,1752355840181,-460.0,0.00016713,2]
[371563241,1752355840191,-460.0,0.00016713,2]
[371563242,1752355840201,-460.0,0.00016811,2]
[371563243,1752355840211,-460.0,0.00016811,2]
[371563244,1752355840220,-274.89,0.00016811,2]
[371563245,1752355840229,-460.0,0.00016811,2]
[371563246,1752355840239,-460.0,0.00016811,2]
[371563247,1752355840248,-460.0,0.00016811,2]
[371563248,1752355840258,-352.73,0.00016811,2]
[371563249,1752355840268,-460.0,0.00016811,2]
[371563250,1752355840277,-460.0,0.00016811,2]
[371563251,1752355840286,-962.79,0.00016811,2]
[371563252,1752355840295,-460.0,0.00016811,2]
[371563253,1752355840305,-460.0,0.00016811,2]
[371563254,1752355840315,-568.85,0.00016811,2]
[371563255,1752355840325,-527.84,0.00016811,2]
[371563256,1752355840334,-1690.37,0.00016811,2]
[371563257,1752355840344,-460.0,0.00016811,2]
[371563258,1752355840353,-460.0,0.00016812,2]
[371563259,1752355840363,-460.0,0.00016813,2]
[371563260,1752355840373,-1150.17143235,0.000169,2]
[371563261,1752355840384,-154.12425,0.0001698,2]
[371563262,1752355840394,-163.35081,0.00016982,2]
[371563263,1752355840403,-196.345561,0.00016982,2]
[371563264,1752355840413,-460.0,0.00016986,2]
[371563265,1752355840422,-522.22,0.00016986,2]
[371563266,1752355840432,-932.41,0.00016986,2]
[371563267,1752355840442,-460.0,0.00016986,2]
[371563268,1752355840452,-460.0,0.00016986,2]
[371563269,1752355840462,-460.0,0.00016986,2]
[371563270,1752355840472,-460.0,0.00016986,2]
[371563271,1752355840482,-676.59,0.00016986,2]
[371563272,1752355840492,-468.73,0.00016986,2]
[371563273,1752355840502,-460.0,0.00016986,2]
[371563274,1752355840515,-460.0,0.00016986,2]
[371563275,1752355840525,-460.0,0.00016986,2]
[371563276,1752355840535,-460.0,0.00016986,2]
[371563277,1752355840544,-517.96,0.00016986,2]
[371563278,1752355840554,-460.0,0.00016986,2]
[371563279,1752355840564,-515.61,0.00016986,2]
[371563280,1752355840574,-460.0,0.00016986,2]
[371563281,1752355840583,-460.0,0.00016986,2]
[371563282,1752355840593,-460.0,0.00016986,2]
[371563283,1752355840605,-460.0,0.00016986,2]
[371563284,1752355840615,-189.10769702,0.00016986,2]
[371563285,1752355840625,-460.0,0.00016986,2]
[371563286,1752355840635,-460.0,0.00016987,2]
[371563287,1752355840646,-460.0,0.00016987,2]
[371563288,1752355840656,-460.0,0.00016987,2]
[371563289,1752355840666,-460.0,0.00016987,2]
[371563290,1752355840676,-1661.57,0.00016987,2]
[371563291,1752355840686,-460.0,0.00016987,2]
[371563292,1752355840696,-460.0,0.00016987,2]
[371563293,1752355840706,-460.0,0.00016987,2]
[371563294,1752355840716,-196.345561,0.00017064,2]
[371563295,1752355840726,-500.0,0.00017083,2]
[371563296,1752355840736,-500.0,0.00017083,2]
[371563297,1752355840746,-500.0,0.00017083,2]
[371563298,1752355840756,-259.8,0.00017085,2]
[371563299,1752355840766,-460.0,0.00017085,2]
[371563300,1752355840776,-460.0,0.00017085,2]
[371563301,1752355840786,-460.0,0.00017085,2]
[371563302,1752355840796,-465.82,0.00017085,2]
[371563303,1752355840807,-962.79,0.00017085,2]
[371563304,1752355840816,-460.0,0.00017085,2]
[371563305,1752355841004,-527.84,0.00017085,2]
[371563306,1752355841014,-1690.37,0.00017085,2]
[371563307,1752355841024,-460.0,0.00017085,2]
[371563308,1752355841034,-500.0,0.00017141,2]
[371563309,1752355841044,-500.0,0.00017141,2]
[371563310,1752355841054,-500.0,0.00017141,2]
[371563311,1752355841064,-196.345561,0.00017145,2]
[371563312,1752355841074,-500.0,0.00017186,2]
[371563313,1752355841083,-620.62967494,0.00017186,2]
[371563314,1752355841093,-500.0,0.00017186,2]
[371563315,1752355841103,-500.0,0.00017186,2]
[371563316,1752355841112,-500.0,0.00017186,2]
[371563317,1752355841122,-501.22404967,0.00017186,2]
[371563318,1752355841132,-500.45386104,0.00017186,2]
[371563320,1752355841141,-500.0,0.00017186,2]
[371563322,1752355841151,-500.0,0.00017186,2]
[371563324,1752355841159,-500.0,0.00017186,2]
[371563326,1752355841169,-500.96424157,0.00017186,2]
[371563328,1752355841184,-234.4616341,0.00017186,2]
[371563330,1752355841193,-500.0,0.00017186,2]
[371563332,1752355841203,-500.0,0.00017186,2]
[371563333,1752355841212,-500.0,0.00017186,2]
[371563334,1752355841222,-1150.1714321,0.0001721,2]
[371563335,1752355841232,-196.345561,0.00017226,2]
[371563336,1752355841243,-186.57,0.0001726,2]
[371563337,1752355841254,-522.22,0.0001726,2]
[371563338,1752355841263,-932.41,0.0001726,2]
[371563339,1752355841273,-460.0,0.0001726,2]
[371563340,1752355841282,-460.0,0.0001726,2]
[371563341,1752355841291,-460.0,0.0001726,2]
[371563342,1752355841301,-460.0,0.0001726,2]
[371563343,1752355841310,-676.59,0.0001726,2]
[371563344,1752355841319,-468.73,0.0001726,2]
[371563345,1752355841329,-460.0,0.0001726,2]
[371563346,1752355841338,-193.64,0.0001726,2]
[371563347,1752355841348,-460.0,0.0001726,2]
[371563348,1752355841357,-160.8,0.0001726,2]
[371563349,1752355841366,-517.96,0.0001726,2]
[371563350,1752355841376,-460.0,0.0001726,2]
[371563351,1752355841385,-460.0,0.0001726,2]
[371563352,1752355841395,-460.0,0.0001726,2]
[371563353,1752355841404,-460.0,0.0001726,2]
[371563354,1752355841414,-460.0,0.0001726,2]